bitfinex/quotes_SOLUSD_20250625
["timestamp","ask_amount","ask_price","bid_price","bid_amount"]
[1750814424667,10.17708031,145.41,145.4,8.0]
[1750814424874,19.39782677,145.41,145.4,8.0]
[1750814425343,38.04747563,145.41,145.39,8.0]
[1750814425539,27.87039532,145.4,145.38,8.0]
[1750814425769,9.22074646,145.39,145.38,8.0]
[1750814426469,9.90855167,145.39,145.38,8.0]
[1750814426768,0.6877579,145.4,145.38,8.0]
[1750814426984,0.6877579,145.4,145.39,8.0]
[1750814427182,9.90850436,145.4,145.39,8.0]
[1750814428173,9.22074646,145.4,145.39,8.0]
[1750814429157,9.90850436,145.4,145.39,8.0]
[1750814430273,9.22074646,145.4,145.39,8.0]
[1750814430570,9.90850436,145.4,145.39,8.0]
[1750814430775,9.22074646,145.4,145.39,8.0]
[1750814432874,10.17707396,145.41,145.39,8.0]
[1750814433179,9.22074646,145.4,145.39,8.0]
[1750814434174,10.17707396,145.41,145.39,8.0]
[1750814434378,10.17707396,145.41,145.4,8.0]
[1750814434379,9.48935144,145.41,145.4,8.0]
[1750814434680,21.05597405,145.45,145.42,8.0]
[1750814434976,0.68766332,145.42,145.4,8.0]
[1750814435152,9.22074646,145.41,145.4,8.0]
[1750814436576,9.22074646,145.41,145.39,8.0]
[1750814436770,9.22074646,145.4,145.39,8.0]
[1750814436974,0.68780521,145.39,145.38,8.0]
[1750814437175,9.90855167,145.39,145.37,8.0]
[1750814437373,9.22074646,145.38,145.37,8.0]
[1750814438892,0.68780521,145.39,145.37,8.0]
[1750814439179,27.87039532,145.38,145.36,8.0]
[1750814439385,9.22074646,145.37,145.36,8.0]
[1750814440161,35.22074646,145.37,145.35,8.0]
[1750814440379,44.64964886,145.37,145.36,8.0]
[1750814440685,53.87039532,145.37,145.36,8.0]
[1750814441067,54.55829516,145.37,145.36,8.0]
[1750814441263,44.64964886,145.36,145.32,8.0]
[1750814441464,9.22074646,145.33,145.32,8.0]
[1750814441663,29.47589532,145.33,145.3,8.0]
[1750814441884,9.22074646,145.31,145.3,8.0]
[1750814443288,9.90893034,145.31,145.3,8.0]
[1750814443857,0.68818388,145.31,145.3,8.0]
[1750814444064,0.68808917,145.33,145.32,8.0]
[1750814444280,9.90883563,145.33,145.32,8.0]
[1750814444880,0.68805761,145.34,145.32,8.0]
[1750814445184,0.68805761,145.34,145.33,8.0]
[1750814446473,9.90880407,145.34,145.33,8.0]
[1750814449387,9.22074646,145.34,145.33,8.0]
[1750814449788,9.9087594,145.35,145.33,8.0]
[1750814450372,9.9087594,145.35,145.34,8.0]
[1750814450571,9.22074646,145.35,145.34,8.0]
[1750814450967,9.90874095,145.35,145.34,8.0]
[1750814452394,9.90874095,145.35,145.33,8.0]
[1750814452587,19.33764335,145.35,145.34,8.0]
[1750814452888,28.55838981,145.35,145.33,8.0]
[1750814453195,9.22074646,145.34,145.33,8.0]
[1750814454871,9.90878829,145.34,145.33,8.0]
[1750814456278,6.26867784,145.34,145.33,8.0]
[1750814458898,0.68804183,145.34,145.33,8.0]
[1750814459077,6.26867784,145.34,145.33,8.0]
[1750814459901,0.68804183,145.34,145.33,8.0]
[1750814460086,6.26867784,145.34,145.33,8.0]
[1750814461009,6.26867784,145.34,145.31,8.0]
[1750814461010,24.9183267,145.34,145.31,8.0]
[1750814461192,5.58063601,145.32,145.31,8.0]
[1750814461393,5.58063601,145.32,145.29,8.0]
[1750814461703,5.58063601,145.3,145.29,8.0]
[1750814462090,3.93214641,145.34,145.32,8.0]
[1750814462282,5.58063601,145.33,145.32,8.0]
[1750814462499,6.26872518,145.33,145.32,8.0]
[1750814462696,6.26872518,145.33,145.26,11.81073601]
[1750814462697,7.98894812,145.33,145.3,8.0]
[1750814463013,5.58063601,145.31,145.29,8.0]
[1750814463224,5.58063601,145.3,145.29,8.0]
[1750814463597,24.23028487,145.3,145.28,8.0]
[1750814463911,5.58063601,145.29,145.28,8.0]
[1750814464128,5.58063601,145.29,145.27,8.0]
[1750814464329,5.58063601,145.28,145.27,8.0]
[1750814464522,6.26895129,145.29,145.27,8.0]
[1750814465094,6.26895129,145.29,145.22,6.0486]
[1750814465095,5.58063601,145.3,145.29,8.0]
[1750814465302,26.0,145.31,145.3,8.0]
[1750814465526,31.58063601,145.31,145.3,8.0]
[1750814465718,32.26883756,145.31,145.3,8.0]
[1750814466232,52.63894612,145.31,145.28,8.0]
[1750814466458,6.26891462,145.29,145.28,8.0]
[1750814468831,0.68823124,145.3,145.29,8.0]
[1750814468994,6.26886725,145.3,145.29,8.0]
[1750814470502,6.26886725,145.3,145.28,8.0]
[1750814470715,5.58063601,145.29,145.28,8.0]
[1750814471221,6.26891462,145.29,145.28,8.0]
[1750814472024,6.26891462,145.29,145.27,8.0]
[1750814472230,5.58063601,145.28,145.27,8.0]
[1750814472611,5.58063601,145.28,145.26,8.0]
[1750814473015,6.26900938,145.27,145.26,8.0]
[1750814474323,6.26900938,145.27,145.25,8.0]
[1750814474624,5.58063601,145.26,145.25,8.0]
[1750814475126,6.26905677,145.26,145.24,8.0]
[1750814475424,5.58063601,145.25,145.24,8.0]
[1750814477222,6.26910416,145.25,145.24,8.0]
[1750814480333,6.26910416,145.25,145.17,1.4900048]
[1750814480334,18.64964886,145.24,145.2,8.0]
[1750814480503,18.64964886,145.24,145.17,1.4900048]
[1750814480504,2.40963854,145.25,145.21,8.0]
[1750814481048,2.40963854,145.25,145.23,8.0]
[1750814481208,5.58063601,145.24,145.23,8.0]
[1750814481413,5.58063601,145.24,145.17,7.07064081]
[1750814481414,0.68848714,145.25,145.24,8.0]
[1750814481615,6.26912315,145.25,145.24,8.0]
[1750814482312,3.44058766,145.33,145.27,8.0]
[1750814482313,147.20072223,145.3,145.27,8.0]
[1750814482517,0.68818388,145.31,145.29,8.0]
[1750814482729,5.58063601,145.3,145.29,8.0]
[1750814483843,1.00072223,145.34,145.33,8.0]
[1750814484019,13.71511803,145.36,145.34,8.0]
[1750814484020,0.6879524,145.36,145.34,8.0]
[1750814484203,1.68857475,145.38,145.37,8.0]
[1750814484409,6.26848853,145.38,145.37,8.0]
[1750814484805,15.04699761,145.4,145.39,8.0]
[1750814485107,13.70763362,145.4,145.39,8.0]
[1750814485308,39.70763362,145.4,145.39,8.0]
[1750814485732,13.0198572,145.4,145.39,8.0]
[1750814485932,5.58063601,145.4,145.39,8.0]
[1750814486122,6.26839391,145.4,145.39,8.0]
[1750814487432,5.58063601,145.41,145.4,8.0]
[1750814487634,1.68830731,145.44,145.43,8.0]
[1750814487810,6.26822109,145.44,145.43,8.0]
[1750814489342,0.68758508,145.44,145.43,8.0]
[1750814489511,6.26822109,145.44,145.43,8.0]
[1750814491908,0.68745988,145.47,145.46,8.0]
[1750814492133,6.26809589,145.47,145.46,8.0]
[1750814492638,18.64964886,145.46,145.45,8.0]
[1750814492826,24.23028487,145.46,145.44,8.0]
[1750814493024,24.23028487,145.45,145.44,8.0]
[1750814493940,18.64964886,145.44,145.43,8.0]
[1750814494141,29.81092088,145.44,145.41,8.0]
[1750814494312,5.58063601,145.42,145.41,8.0]
[1750814495039,47.05597405,145.45,145.44,8.0]
[1750814495344,50.91780635,145.45,145.44,8.0]
[1750814500553,0.68752148,145.45,145.44,8.0]
[1750814500737,6.26815749,145.45,145.44,8.0]
[1750814501844,0.68752148,145.45,145.44,8.0]
[1750814502050,0.68749437,145.46,145.45,8.0]
[1750814502252,6.26813038,145.46,145.45,8.0]
[1750814503529,5.58063601,145.46,145.45,8.0]
[1750814506353,6.26811022,145.46,145.45,8.0]
[1750814507652,0.68747421,145.46,145.45,8.0]
[1750814507851,6.26811022,145.46,145.45,8.0]
[1750814514260,0.68747421,145.46,145.45,8.0]
[1750814514433,6.26811022,145.46,145.45,8.0]
[1750814518160,0.68744628,145.47,145.46,8.0]
[1750814518345,6.26808229,145.47,145.46,8.0]
[1750814519357,0.68744628,145.47,145.46,8.0]
[1750814519561,6.26808229,145.47,145.46,8.0]
[1750814520580,5.58063601,145.47,145.46,8.0]
[1750814521660,6.26806297,145.47,145.46,8.0]
[1750814522564,5.58063601,145.47,145.46,8.0]
[1750814523069,6.26801701,145.48,145.46,8.0]
[1750814523443,5.58063601,145.48,145.46,8.0]
[1750814523963,14.79423423,145.49,145.48,8.0]
[1750814524843,15.48157206,145.49,145.48,8.0]
[1750814525245,6.26797384,145.49,145.48,8.0]
[1750814525447,0.68733783,145.49,145.48,8.0]
[1750814525641,11.38079134,145.49,145.48,8.0]
[1750814526052,10.69345351,145.49,145.48,8.0]
[1750814526286,5.58063601,145.49,145.48,8.0]
[1750814527648,31.80007224,145.51,145.48,8.0]
[1750814527849,5.1128175,145.51,145.5,8.0]
[1750814528546,11.38065913,145.52,145.5,8.0]
[1750814528742,5.1128175,145.52,145.51,8.0]
[1750814528980,8.33333333,145.53,145.52,8.0]
[1750814529645,8.33333333,145.53,145.52,14.87190764]
[1750814529842,8.33333333,145.53,145.52,20.45254365]
[1750814530046,8.33333333,145.53,145.52,8.0]
[1750814530475,8.33333333,145.53,145.52,14.87190764]
[1750814530841,8.33333333,145.53,145.52,8.0]
[1750814531174,8.33333333,145.53,145.52,14.87190764]
[1750814531350,8.33333333,145.53,145.52,20.45254365]
[1750814532259,8.33333333,145.53,145.52,26.03317966]
[1750814532565,8.33333333,145.53,145.52,60.88902852]
[1750814532763,8.33333333,145.53,145.52,55.30839251]
[1750814533271,8.33333333,145.53,145.52,60.88902852]
[1750814533477,0.68669059,145.63,145.62,8.0]
[1750814533765,6.2673266,145.63,145.62,8.0]
[1750814534070,24.91697546,145.63,145.62,8.0]
[1750814534248,44.64964886,145.61,145.6,8.0]
[1750814534445,50.23028487,145.61,145.6,8.0]
[1750814535766,50.91705088,145.61,145.6,8.0]
[1750814537356,0.68676601,145.61,145.6,8.0]
[1750814537554,6.26740202,145.61,145.6,8.0]
[1750814538574,5.58063601,145.62,145.6,8.0]
[1750814538784,19.33632056,145.63,145.62,8.0]
[1750814538955,24.91695657,145.63,145.62,8.0]
[1750814539466,18.64964886,145.62,145.6,8.0]
[1750814539676,18.64964886,145.62,145.58,8.0]
[1750814539677,18.64964886,145.6,145.58,8.0]
[1750814539879,0.68681318,145.6,145.59,8.0]
[1750814540049,6.26744919,145.6,145.59,8.0]
[1750814540974,32.26744919,145.6,145.59,8.0]
[1750814541182,26.68681318,145.6,145.59,8.0]
[1750814541356,32.26744919,145.6,145.59,8.0]
[1750814542864,26.0,145.6,145.59,8.0]
[1750814543065,31.58063601,145.6,145.59,8.0]
[1750814543292,31.58063601,145.6,145.53,29.12]
[1750814543293,18.64964886,145.59,145.57,8.0]
[1750814543457,18.64964886,145.59,145.58,8.0]
[1750814543789,5.58063601,145.59,145.58,8.0]
[1750814543955,5.58063601,145.6,145.59,8.0]
[1750814544870,26.0,145.61,145.59,8.0]
[1750814545174,5.58063601,145.6,145.59,8.0]
[1750814546161,24.23028487,145.6,145.59,8.0]
[1750814546575,18.64964886,145.59,145.57,8.0]
[1750814546888,6.26754355,145.58,145.57,8.0]
[1750814547271,0.68690754,145.58,145.57,8.0]
[1750814547579,6.26754355,145.58,145.57,8.0]
[1750814557897,26.54459241,145.58,145.57,8.0]
[1750814558128,26.54459241,145.58,145.56,8.0]
[1750814558391,5.58063601,145.57,145.56,8.0]
[1750814558775,24.23028487,145.57,145.56,8.0]
[1750814559702,24.91723959,145.57,145.56,8.0]
[1750814563106,5.58063601,145.57,145.56,8.0]
[1750814563309,31.58063601,145.57,145.55,8.0]
[1750814563606,18.64964886,145.55,145.53,8.0]
[1750814563797,18.64964886,145.55,145.54,8.0]
[1750814563988,1.6069,145.58,145.56,8.0]
[1750814564189,26.0,145.57,145.56,8.0]
[1750814565895,31.58063601,145.57,145.56,8.0]
[1750814566080,26.0,145.57,145.56,8.0]
[1750814571080,50.23028487,145.57,145.56,8.0]
[1750814571312,50.91723959,145.57,145.56,8.0]
[1750814571606,50.23028487,145.57,145.56,8.0]
[1750814572402,50.91723959,145.57,145.56,8.0]
[1750814573207,45.33660358,145.57,145.56,8.0]
[1750814573513,50.91723959,145.57,145.56,8.0]
[1750814574296,56.05602639,145.57,145.56,8.0]
[1750814576117,36.71942281,145.57,145.56,8.0]
[1750814576322,26.0,145.57,145.56,8.0]
[1750814577117,5.1387868,145.58,145.57,8.0]
[1750814577288,24.91716033,145.59,145.57,8.0]
[1750814577490,30.05594713,145.59,145.57,8.0]
[1750814577709,24.91716033,145.59,145.57,8.0]
[1750814577913,19.33652432,145.59,145.58,8.0]
[1750814578099,24.91716033,145.59,145.58,8.0]
[1750814578918,30.05594713,145.59,145.58,8.0]
[1750814579215,24.91716033,145.59,145.58,8.0]
[1750814579386,30.05594713,145.59,145.58,8.0]
[1750814579587,56.05594713,145.59,145.58,8.0]
[1750814580600,56.05594713,145.59,145.55,8.0]
[1750814580601,26.0,145.58,145.55,8.0]
[1750814580805,50.23028487,145.56,145.55,8.0]
[1750814581002,55.36907167,145.56,145.54,8.0]
[1750814581198,24.91733399,145.55,145.54,8.0]
[1750814581703,44.64964886,145.54,145.52,8.0]
[1750814581906,29.37088273,145.53,145.52,8.0]
[1750814582105,18.64964886,145.5,145.48,8.0]
[1750814582300,5.58063601,145.49,145.47,8.0]
[1750814582498,31.58063601,145.48,145.45,8.0]
[1750814582691,24.23028487,145.46,145.45,8.0]
[1750814582894,44.64964886,145.45,145.43,8.0]
[1750814583215,45.33726489,145.43,145.42,8.0]
[1750814583390,50.9179009,145.43,145.42,8.0]
[1750814583594,50.9179009,145.43,145.41,8.0]
[1750814583791,24.23028487,145.42,145.41,8.0]
[1750814583992,29.374149,145.42,145.41,8.0]
[1750814584519,24.23028487,145.42,145.39,8.0]
[1750814584730,24.23028487,145.4,145.37,8.0]
[1750814584901,24.23028487,145.38,145.37,8.0]
[1750814585232,24.91813739,145.38,145.37,8.0]
[1750814586211,6.56,145.41,145.37,8.0]
[1750814586413,19.33740676,145.4,145.39,8.0]
[1750814586603,19.33740676,145.4,145.33,5.58063601]
[1750814586604,26.63743754,145.4,145.37,8.0]
[1750814586802,5.58063601,145.38,145.37,8.0]
[1750814587430,50.91813739,145.38,145.37,8.0]
[1750814587605,50.91813739,145.38,145.36,8.0]
[1750814587800,24.23028487,145.37,145.36,8.0]
[1750814589119,24.23028487,145.37,145.35,8.0]
[1750814589292,5.58063601,145.36,145.35,8.0]
[1750814589496,30.49886804,145.36,145.35,8.0]
[1750814589696,24.91823203,145.36,145.35,8.0]
[1750814590612,30.49886804,145.36,145.35,8.0]
[1750814590813,24.91823203,145.36,145.35,8.0]
[1750814592736,5.58063601,145.36,145.35,8.0]
[1750814592945,0.68791542,145.37,145.36,8.0]
[1750814593241,6.26855143,145.37,145.36,8.0]
[1750814593607,165.53735947,145.41,145.4,8.0]
[1750814594705,171.11799548,145.41,145.4,8.0]
[1750814602729,197.11799548,145.41,145.4,8.0]
[1750814604530,178.46834662,145.41,145.4,8.0]
[1750814609730,197.11799548,145.41,145.4,8.0]
[1750814610236,18.64964886,145.4,145.39,8.0]
[1750814610546,24.23028487,145.4,145.39,8.0]
[1750814611312,24.23028487,145.4,145.38,8.0]
[1750814611313,171.11804277,145.4,145.38,8.0]
[1750814611519,5.58063601,145.39,145.38,8.0]
[1750814612138,18.64964886,145.38,145.37,8.0]
[1750814612335,24.23028487,145.38,145.37,8.0]
[1750814612742,24.23028487,145.38,145.36,8.0]
[1750814612919,24.23028487,145.37,145.36,8.0]
[1750814613325,6.26853585,145.37,145.36,8.0]
[1750814613740,32.26853585,145.37,145.36,8.0]
[1750814617644,50.91818471,145.37,145.36,8.0]
[1750814618540,18.64964886,145.36,145.35,8.0]
[1750814618751,29.81092088,145.36,145.34,8.0]
[1750814619119,5.58063601,145.35,145.34,8.0]
[1750814619745,5.58063601,145.35,145.33,8.0]
[1750814620044,24.23028487,145.34,145.33,8.0]
[1750814620536,5.58063601,145.34,145.33,8.0]
[1750814621750,6.26867784,145.34,145.33,8.0]
[1750814622252,32.26867784,145.34,145.33,8.0]
[1750814622544,50.9183267,145.34,145.33,8.0]
[1750814622722,44.64964886,145.33,145.32,8.0]
[1750814622923,50.23028487,145.33,145.32,8.0]
[1750814623831,45.33773803,145.33,145.32,8.0]
[1750814624037,50.91837404,145.33,145.32,8.0]
[1750814626441,50.91837404,145.33,145.31,8.0]
[1750814626638,6.26877253,145.32,145.31,8.0]
[1750814628662,0.68811229,145.33,145.32,8.0]
[1750814628956,6.2687483,145.33,145.32,8.0]
[1750814629160,5.58063601,145.33,145.32,8.0]
[1750814630542,31.58063601,145.33,145.32,8.0]
[1750814630857,32.26872518,145.33,145.32,8.0]
[1750814636566,24.91837404,145.33,145.32,8.0]
[1750814636759,24.91837404,145.33,145.31,8.0]
[1750814636948,5.58063601,145.32,145.31,8.0]
[1750814638469,6.26877253,145.32,145.31,8.0]
[1750814640695,32.26877253,145.32,145.31,8.0]
[1750814641661,26.68813652,145.32,145.31,8.0]
[1750814641862,32.26877253,145.32,145.31,8.0]
[1750814642263,12.78867221,145.36,145.31,8.0]
[1750814642264,0.7080362,145.36,145.31,8.0]
[1750814642578,1.5515,145.37,145.35,8.0]
[1750814642579,20.8890487,145.37,145.35,8.0]
[1750814642770,20.8890487,145.37,145.36,8.0]
[1750814643677,26.46968471,145.37,145.36,8.0]
[1750814644955,26.68789984,145.37,145.36,8.0]
[1750814645160,6.26853585,145.37,145.36,8.0]
[1750814645464,32.26853585,145.37,145.36,8.0]
[1750814645991,5.12805795,145.38,145.37,8.0]
[1750814646289,0.7080362,145.41,145.35,5.58063601]
[1750814646290,26.0,145.4,145.39,8.0]
[1750814646470,31.58063601,145.4,145.39,8.0]
[1750814646980,32.26839391,145.4,145.39,8.0]
[1750814647479,31.58063601,145.4,145.39,8.0]
[1750814648478,32.26839391,145.4,145.39,8.0]
[1750814652272,50.91804277,145.4,145.39,8.0]
[1750814653276,56.04852239,145.4,145.39,8.0]
[1750814654085,50.91804277,145.4,145.39,8.0]
[1750814654468,32.26839391,145.4,145.39,8.0]
[1750814661163,26.6877579,145.4,145.39,8.0]
[1750814661379,32.26839391,145.4,145.39,8.0]
[1750814662381,26.0,145.4,145.39,8.0]
[1750814662581,32.26839391,145.4,145.39,8.0]
[1750814666660,50.91804277,145.4,145.39,8.0]
[1750814668088,45.33740676,145.4,145.39,8.0]
[1750814668274,26.6877579,145.4,145.39,8.0]
[1750814668474,32.26839391,145.4,145.39,8.0]
[1750814671491,26.6877579,145.4,145.39,8.0]
[1750814671675,32.26839391,145.4,145.39,8.0]
[1750814674117,50.91804277,145.4,145.39,8.0]
[1750814674396,32.26839391,145.4,145.39,8.0]
[1750814676893,31.58063601,145.4,145.39,8.0]
[1750814677076,26.6877579,145.4,145.39,8.0]
[1750814677275,32.26839391,145.4,145.39,8.0]
[1750814679087,50.91804277,145.4,145.39,8.0]
[1750814679890,32.26839391,145.4,145.39,8.0]
[1750814683295,45.33740676,145.4,145.39,8.0]
[1750814683495,56.04918583,145.4,145.39,8.0]
[1750814684089,31.81890096,145.4,145.39,8.0]
[1750814684290,6.26839391,145.4,145.39,8.0]
[1750814685075,0.6877579,145.4,145.39,8.0]
[1750814685280,5.58063601,145.4,145.39,8.0]
[1750814686900,10.71177907,145.4,145.39,8.0]
[1750814687301,11.39953697,145.4,145.39,8.0]
[1750814687602,6.26839391,145.4,145.39,8.0]
[1750814687780,11.39953697,145.4,145.39,8.0]
[1750814695807,30.04918583,145.4,145.39,8.0]
[1750814700910,11.39953697,145.4,145.39,8.0]
[1750814702813,5.13114306,145.4,145.39,8.0]
[1750814703335,5.8188067,145.42,145.41,8.0]
[1750814703496,11.39944271,145.42,145.41,8.0]
[1750814703825,10.71177907,145.42,145.41,8.0]
[1750814705327,5.58063601,145.42,145.41,8.0]
[1750814707028,6.26829933,145.42,145.41,8.0]
[1750814707212,5.58063601,145.42,145.41,8.0]
[1750814708121,5.58063601,145.43,145.41,8.0]
[1750814708325,36.71177907,145.44,145.42,8.0]
[1750814708518,31.58063601,145.44,145.43,8.0]
[1750814708829,26.0,145.44,145.43,8.0]
[1750814710021,5.58063601,145.45,145.44,8.0]
[1750814711231,31.81858992,145.47,145.46,8.0]
[1750814711411,17.03823197,145.48,145.47,8.0]
[1750814711618,16.35082544,145.48,145.47,8.0]
[1750814711822,17.03820514,145.48,145.47,8.0]
[1750814719141,35.687854,145.48,145.47,8.0]
[1750814720915,40.81275065,145.48,145.47,8.0]
[1750814721416,40.81275065,145.48,145.46,8.0]
[1750814721417,35.687854,145.48,145.46,8.0]
[1750814721730,5.58063601,145.47,145.46,8.0]
[1750814722239,18.64964886,145.46,145.45,8.0]
[1750814722415,24.23028487,145.46,145.45,8.0]
[1750814723260,24.91775908,145.46,145.45,8.0]
[1750814723837,45.33712307,145.46,145.45,8.0]
[1750814724016,50.91775908,145.46,145.45,8.0]
[1750814725040,32.26811022,145.46,145.45,8.0]
[1750814725238,50.91775908,145.46,145.45,8.0]
[1750814729928,45.33712307,145.46,145.45,8.0]
[1750814730140,50.91775908,145.46,145.45,8.0]
[1750814730760,32.26811022,145.46,145.45,8.0]
[1750814736139,26.68747421,145.46,145.45,8.0]
[1750814736333,32.26811022,145.46,145.45,8.0]
[1750814742236,50.91775908,145.46,145.45,8.0]
[1750814742543,18.64964886,145.45,145.44,8.0]
[1750814742745,24.23028487,145.45,145.44,8.0]
[1750814743052,29.36588088,145.45,145.44,8.0]
[1750814743953,30.05340236,145.45,145.44,8.0]
[1750814744541,24.91780635,145.45,145.44,8.0]
[1750814746041,30.05340236,145.45,145.44,8.0]
[1750814750137,30.05340236,145.45,145.37,6.8788606]
[1750814750138,44.64964886,145.43,145.42,8.0]
[1750814750452,53.35370609,145.43,145.42,8.0]
[1750814750868,54.04132212,145.43,145.42,8.0]
[1750814752239,56.04822843,145.43,145.42,8.0]
[1750814753534,37.39857957,145.43,145.42,8.0]
[1750814753841,32.26298356,145.43,145.42,8.0]
[1750814754036,36.71096354,145.43,145.42,8.0]
[1750814754237,31.57536753,145.43,145.42,8.0]
[1750814755235,5.13559601,145.45,145.42,8.0]
[1750814755436,5.57536753,145.45,145.44,8.0]
[1750814758068,31.57536753,145.46,145.45,8.0]
[1750814758555,10.71096354,145.47,145.46,8.0]
[1750814758758,5.57536753,145.47,145.46,8.0]
[1750814760543,6.26279449,145.47,145.46,8.0]
[1750814760841,11.3983905,145.47,145.46,8.0]
[1750814762667,6.26279449,145.47,145.46,8.0]
[1750814763769,0.68742696,145.47,145.46,8.0]
[1750814764062,5.82302297,145.47,145.46,8.0]
[1750814764245,0.68742696,145.47,145.46,8.0]
[1750814764439,5.82299538,145.48,145.46,8.0]
[1750814764963,5.82299538,145.48,145.47,8.0]
[1750814767061,26.0,145.49,145.47,8.0]
[1750814767062,31.13559601,145.49,145.47,8.0]
[1750814767263,26.0,145.49,145.48,8.0]
[1750814767661,5.13559601,145.5,145.49,8.0]
[1750814767850,5.13559601,145.51,145.5,8.0]
[1750814768049,5.13559601,145.52,145.51,8.0]
[1750814768277,15.3116197,145.53,145.51,8.0]
[1750814768647,15.3116197,145.53,145.52,8.0]
[1750814768849,0.68712688,145.54,145.52,8.0]
[1750814769050,0.68712688,145.54,145.53,8.0]
[1750814769955,26.68712688,145.54,145.53,8.0]
[1750814775052,5.13559601,145.56,145.54,8.0]
[1750814775360,6.41095624,145.59,145.56,8.0]
[1750814775361,0.68695472,145.57,145.56,8.0]
[1750814775969,0.68692219,145.58,145.57,8.0]
[1750814776271,0.68686036,145.59,145.58,8.0]
[1750814777673,9.02016021,145.6,145.59,8.0]
[1750814778065,8.33333333,145.6,145.59,8.0]
[1750814778483,8.33333333,145.6,145.59,14.86860361]
[1750814779572,8.33333333,145.6,145.59,8.0]
[1750814780178,8.33333333,145.6,145.59,14.86860361]
[1750814780788,8.33333333,145.6,145.59,43.51825247]
[1750814781163,7.22473333,145.6,145.59,8.0]
[1750814781556,7.22473333,145.6,145.59,14.86860361]
[1750814783985,7.22473333,145.6,145.59,8.0]
[1750814785879,7.22473333,145.6,145.59,14.86860361]
[1750814786476,7.22473333,145.6,145.59,8.0]
[1750814787086,7.22473333,145.6,145.59,14.86860361]
[1750814787781,7.22473333,145.6,145.59,8.0]
[1750814791969,7.91154651,145.6,145.59,8.0]
[1750814795689,21.05316485,145.62,145.59,8.0]
[1750814795889,21.05316485,145.62,145.61,8.0]
[1750814797298,21.05316485,145.62,145.6,8.0]
[1750814797878,21.05316485,145.62,145.61,8.0]
[1750814798079,2.40351599,145.62,145.61,8.0]
[1750814798510,0.68662455,145.64,145.62,8.0]
[1750814798799,0.68662455,145.64,145.63,8.0]
[1750814801198,26.0,145.64,145.63,8.0]
[1750814803284,26.68662455,145.64,145.63,8.0]
[1750814818921,26.0,145.64,145.63,8.0]
[1750814819802,0.68650558,145.67,145.66,8.0]
[1750814821730,5.81579611,145.68,145.66,8.0]
[1750814821906,5.12936009,145.67,145.66,8.0]
[1750814822810,5.12936009,145.68,145.67,8.0]
[1750814824199,26.68640693,145.69,145.68,8.0]
[1750814824200,5.12936009,145.69,145.68,8.0]
[1750814824401,2.33716317,145.7,145.61,21.70355708]
[1750814824402,7.46652326,145.7,145.69,8.0]
[1750814824707,26.0,145.67,145.66,8.0]
[1750814825835,26.68648314,145.67,145.66,8.0]
[1750814829131,26.68645253,145.68,145.67,8.0]
[1750814832325,0.68645253,145.68,145.66,8.0]
[1750814832809,0.68645253,145.68,145.67,8.0]
[1750814835707,19.33603776,145.69,145.67,8.0]
[1750814835934,45.33603776,145.69,145.67,8.0]
[1750814836132,5.1294977,145.68,145.67,8.0]
[1750814837724,5.81593372,145.68,145.67,8.0]
[1750814838622,26.68640286,145.69,145.68,8.0]
[1750814841338,26.0,145.69,145.68,8.0]
[1750814841917,0.68631701,145.71,145.7,8.0]
[1750814842347,19.33596587,145.71,145.69,8.0]
[1750814842528,18.64964886,145.7,145.67,8.0]